bitfinex-derivatives/quotes_BTCF0:USTF0_20250722
["timestamp","ask_amount","ask_price","bid_price","bid_amount"]
[1753225021129,1.13266831,119860.0,119850.0,0.06809105]
[1753225022024,1.13266831,119860.0,119850.0,0.10593621]
[1753225022530,1.13266831,119860.0,119850.0,0.10493621]
[1753225023930,1.13266831,119860.0,119850.0,0.06509105]
[1753225024233,0.2107802,119850.0,119840.0,0.17870141]
[1753225024428,0.55280221,119850.0,119840.0,0.17870141]
[1753225024937,0.55280221,119850.0,119840.0,0.21882198]
[1753225025335,0.55480221,119850.0,119840.0,0.21882198]
[1753225025636,0.55680221,119850.0,119840.0,0.21882198]
[1753225027435,1.13224221,119850.0,119840.0,0.19484198]
[1753225028035,1.13224221,119850.0,119840.0,0.21882198]
[1753225028432,1.13224221,119850.0,119840.0,0.19484198]
[1753225028734,1.13224221,119850.0,119840.0,0.04020428]
[1753225028934,1.13231843,119850.0,119840.0,0.04020428]
[1753225029136,1.13231843,119850.0,119840.0,0.0849563]
[1753225030231,1.13231843,119850.0,119840.0,0.1096863]
[1753225030832,1.13231843,119850.0,119840.0,0.1486163]
[1753225031035,1.13231843,119850.0,119840.0,0.10849573]
[1753225031727,1.13231843,119850.0,119840.0,0.12125192]
[1753225032129,1.13231843,119850.0,119840.0,0.10849573]
[1753225035641,1.13231843,119850.0,119840.0,0.04483573]
[1753225036939,0.55687843,119850.0,119840.0,0.04483573]
[1753225037139,1.13231843,119850.0,119840.0,0.12018573]
[1753225037538,1.13211843,119850.0,119840.0,0.12018573]
[1753225039345,0.55687843,119850.0,119840.0,0.12018573]
[1753225039542,1.13207843,119850.0,119840.0,0.12018573]
[1753225039936,0.55687843,119850.0,119840.0,0.13292734]
[1753225040142,1.13199843,119850.0,119840.0,0.13292734]
[1753225040342,1.13199843,119850.0,119840.0,0.12018573]
[1753225041543,1.13179843,119850.0,119840.0,0.12018573]
[1753225041939,0.55687843,119850.0,119840.0,0.12018573]
[1753225042139,1.13179843,119850.0,119840.0,0.13293304]
[1753225042341,0.85650642,119850.0,119840.0,0.13293304]
[1753225042543,0.55687843,119850.0,119840.0,0.13293304]
[1753225042743,1.13175843,119850.0,119840.0,0.13293304]
[1753225043142,0.55687843,119850.0,119840.0,0.13293304]
[1753225043543,1.13163843,119850.0,119840.0,0.13293304]
[1753225043944,1.13163843,119850.0,119840.0,0.12124304]
[1753225044244,1.13163843,119850.0,119840.0,0.05758304]
[1753225044644,1.13163843,119850.0,119840.0,0.04483573]
[1753225044842,1.13163843,119850.0,119840.0,0.05759202]
[1753225045339,0.55687843,119850.0,119840.0,0.05759202]
[1753225045643,1.13155843,119850.0,119840.0,0.05759202]
[1753225045837,1.13139843,119850.0,119840.0,0.05759202]
[1753225046037,1.13139843,119850.0,119840.0,0.13294202]
[1753225046237,0.55687843,119850.0,119840.0,0.13294202]
[1753225046434,1.13139843,119850.0,119840.0,0.13294202]
[1753225046643,1.13139843,119850.0,119840.0,0.14271995]
[1753225046844,1.13139843,119850.0,119840.0,0.13294202]
[1753225047044,0.55687843,119850.0,119840.0,0.08819]
[1753225047245,1.13139843,119850.0,119840.0,0.09796793]
[1753225048449,1.13139843,119850.0,119840.0,0.08627793]
[1753225048646,1.13139843,119850.0,119840.0,0.04734793]
[1753225048947,1.13127843,119850.0,119840.0,0.09217]
[1753225049149,1.13127843,119850.0,119840.0,0.06744]
[1753225051946,1.14975743,119850.0,119840.0,0.06744]
[1753225053749,1.15275743,119850.0,119840.0,0.05766207]
[1753225054055,1.15175743,119850.0,119840.0,0.06747347]
[1753225054450,0.87646542,119850.0,119840.0,0.05468406]
[1753225054649,1.15175743,119850.0,119840.0,0.06747883]
[1753225054948,1.15163743,119850.0,119840.0,0.06747883]
[1753225055255,1.13435843,119850.0,119840.0,0.06747883]
[1753225055554,1.13443843,119850.0,119840.0,0.09800676]
[1753225055752,0.55887843,119850.0,119840.0,0.11408676]
[1753225055951,0.55887843,119850.0,119840.0,0.14398676]
[1753225056152,0.55887843,119850.0,119840.0,0.18887689]
[1753225056153,0.57616963,119850.0,119840.0,0.18887689]
[1753225056353,0.87639762,119850.0,119840.0,0.18887689]
[1753225056547,0.87639832,119850.0,119840.0,0.18887689]
[1753225056749,0.30087832,119850.0,119840.0,0.18887689]
[1753225056953,0.28358642,119850.0,119840.0,0.18888351]
[1753225057254,1.13431843,119850.0,119840.0,0.18888351]
[1753225058057,1.13431843,119850.0,119840.0,0.14399338]
[1753225058360,1.13427843,119850.0,119840.0,0.14399338]
[1753225060553,1.13399843,119850.0,119840.0,0.14399338]
[1753225062757,1.13399843,119850.0,119840.0,0.1342151]
[1753225062955,1.13399843,119850.0,119840.0,0.14412737]
[1753225063355,1.13367843,119850.0,119840.0,0.14412737]
[1753225063556,1.13367843,119850.0,119840.0,0.14412736]
[1753225065959,1.13367843,119850.0,119840.0,0.12000736]
[1753225066459,0.55887843,119850.0,119840.0,0.12000736]
[1753225066660,1.13339843,119850.0,119840.0,0.12000736]
[1753225066858,1.13339843,119850.0,119840.0,0.09814736]
[1753225067060,0.55887843,119850.0,119840.0,0.09814736]
[1753225067361,1.13339843,119850.0,119840.0,0.09814736]
[1753225069363,1.27172786,119850.0,119840.0,0.09814736]
[1753225069562,0.49039714,119850.0,119840.0,0.09814736]
[1753225069762,1.06487714,119850.0,119840.0,0.09814736]
[1753225070158,1.06487714,119850.0,119840.0,0.11460736]
[1753225070657,0.49039714,119850.0,119840.0,0.11460736]
[1753225070859,1.06487714,119850.0,119840.0,0.11460736]
[1753225071051,0.49039714,119850.0,119840.0,0.11460736]
[1753225071257,1.06487714,119850.0,119840.0,0.11460736]
[1753225072058,1.06487714,119850.0,119840.0,0.10167158]
[1753225072259,1.06487714,119850.0,119840.0,0.11460469]
[1753225075263,1.06487714,119850.0,119840.0,0.11460652]
[1753225076067,0.49039714,119850.0,119840.0,0.11460652]
[1753225076268,1.06487714,119850.0,119840.0,0.35176724]
[1753225076665,1.06487714,119850.0,119840.0,0.14495652]
[1753225076865,0.27515642,119850.0,119840.0,0.72539206]
[1753225077165,0.27515642,119850.0,119840.0,0.5655]
[1753225077166,0.99814714,119850.0,119840.0,0.5655]
[1753225077366,0.42366714,119850.0,119840.0,0.57843174]
[1753225077666,0.99814714,119850.0,119840.0,0.57843174]
[1753225077866,1.05761714,119850.0,119840.0,0.57843174]
[1753225078059,1.05761714,119850.0,119840.0,0.57843118]
[1753225080176,0.85080642,119850.0,119840.0,0.57843118]
[1753225080371,1.05761714,119850.0,119840.0,0.57843118]
[1753225080869,1.05761714,119850.0,119840.0,0.55572204]
[1753225081073,1.05761714,119850.0,119840.0,0.57842904]
[1753225081767,1.06658714,119850.0,119840.0,0.57842904]
[1753225081975,1.06658714,119850.0,119840.0,0.57842924]
[1753225082576,0.49210714,119850.0,119840.0,0.57842924]
[1753225082776,1.05757714,119850.0,119840.0,0.51857573]
[1753225082976,1.05757714,119850.0,119840.0,0.31176501]
[1753225083178,1.05757714,119850.0,119840.0,0.51857573]
[1753225083377,1.06654714,119850.0,119840.0,0.51857573]
[1753225084180,1.06654714,119850.0,119840.0,0.57842924]
[1753225088585,0.49210714,119850.0,119840.0,0.57842924]
[1753225088972,0.21685642,119850.0,119840.0,0.78523996]
[1753225089176,0.19419642,119850.0,119840.0,0.72538645]
[1753225089380,0.99881714,119850.0,119840.0,0.71245588]
[1753225089580,0.99881714,119850.0,119840.0,0.72549139]
[1753225089780,0.79200642,119850.0,119840.0,0.72549139]
[1753225089981,0.99881714,119850.0,119840.0,0.72549156]
[1753225090379,0.79200642,119850.0,119840.0,0.72549156]
[1753225092080,0.79200642,119850.0,119840.0,0.78532225]
[1753225092386,0.21760642,119850.0,119840.0,0.78532225]
[1753225092586,0.79200642,119850.0,119840.0,0.78532223]
[1753225093387,0.21760642,119850.0,119840.0,0.78532223]
[1753225093582,0.76855642,119850.0,119840.0,0.78532223]
[1753225093786,0.17287642,119850.0,119840.0,0.72549154]
[1753225093987,0.00607622,119850.0,119840.0,1.37445963]
[1753225094186,0.00607622,119850.0,119840.0,1.29985154]
[1753225094688,0.00607622,119850.0,119840.0,1.58140062]
[1753225094986,0.00607622,119850.0,119840.0,1.3745899]
[1753225097582,0.1669877,119860.0,119850.0,0.2824702]
[1753225097783,0.1667877,119860.0,119850.0,0.79364229]
[1753225098696,0.2942737,119870.0,119860.0,0.2124763]
[1753225098895,0.2942737,119870.0,119860.0,0.77862573]
[1753225098896,0.2940737,119870.0,119860.0,0.77862573]
[1753225099296,0.2084785,119870.0,119860.0,0.77862501]
[1753225100396,0.2104785,119870.0,119860.0,0.71988638]
[1753225100786,0.2114785,119870.0,119860.0,0.72088638]
[1753225100991,0.2114785,119870.0,119860.0,0.78858081]
[1753225101491,0.2104785,119870.0,119860.0,0.78758081]
[1753225101691,0.2124785,119870.0,119860.0,0.78958081]
[1753225107795,0.2124785,119870.0,119860.0,0.77980568]
[1753225108100,0.2124785,119870.0,119860.0,0.78957948]
[1753225108300,0.2124785,119870.0,119860.0,0.37595804]
[1753225108503,0.2511185,119870.0,119860.0,0.78957948]
[1753225108693,0.2563785,119870.0,119860.0,0.78957948]
[1753225113705,0.2563785,119870.0,119860.0,0.37595804]
[1753225113906,0.2563785,119870.0,119860.0,0.78957948]
[1753225114401,0.2563785,119870.0,119860.0,0.37595804]
[1753225114601,0.2563785,119870.0,119860.0,0.78957948]
[1753225117303,0.2511185,119870.0,119860.0,0.76677217]
[1753225117503,0.2511185,119870.0,119860.0,0.78957948]
[1753225117908,0.2511185,119870.0,119860.0,0.77654673]
[1753225118206,0.2511185,119870.0,119860.0,0.78957948]
[1753225123413,0.2511185,119870.0,119860.0,0.72988505]
[1753225123615,0.2511185,119870.0,119860.0,0.7168523]
[1753225123814,0.2511185,119870.0,119860.0,0.72988505]
[1753225125307,0.2124785,119870.0,119860.0,0.72988505]
[1753225126514,0.2124785,119870.0,119860.0,0.70707774]
[1753225126715,0.2124785,119870.0,119860.0,0.73965958]
[1753225127306,0.1707724,119870.0,119860.0,0.73965942]
[1753225127512,0.004,119870.0,119860.0,0.73965942]
[1753225129317,0.004,119870.0,119860.0,0.81439778]
[1753225131413,0.166969,119880.0,119870.0,0.1667724]
[1753225131618,0.166769,119880.0,119870.0,0.70735097]
[1753225131816,0.166769,119880.0,119870.0,0.71766097]
[1753225132119,0.166769,119880.0,119870.0,1.08477025]
[1753225132620,0.166769,119880.0,119870.0,1.08577025]
[1753225132815,0.168769,119880.0,119870.0,1.08577025]
[1753225134522,0.168769,119880.0,119870.0,0.87895953]
[1753225134717,0.168769,119880.0,119870.0,1.08577025]
[1753225134918,0.168769,119880.0,119870.0,1.29258097]
[1753225135420,0.003,119880.0,119870.0,1.29658097]
[1753225135719,0.1697584,119880.0,119870.0,1.29657956]
[1753225139821,0.003,119880.0,119870.0,1.29657956]
[1753225140023,0.003,119880.0,119870.0,1.37132567]
[1753225140622,0.003,119880.0,119870.0,1.37132541]
[1753225143427,0.003,119880.0,119870.0,1.2965793]
[1753225143823,0.003,119880.0,119870.0,1.27377384]
[1753225144031,0.003,119880.0,119870.0,1.37132408]
[1753225144235,0.003,119880.0,119870.0,0.95770264]
[1753225144524,0.1697584,119880.0,119870.0,1.37124408]
[1753225144719,0.1697584,119880.0,119870.0,1.16439336]
[1753225144917,0.1697584,119880.0,119870.0,0.59059336]
[1753225145118,0.1697584,119880.0,119870.0,1.08964725]
[1753225146130,0.003,119880.0,119870.0,1.29645797]
[1753225147425,0.003,119880.0,119870.0,1.37120408]
[1753225152239,0.003,119880.0,119870.0,1.29645797]
[1753225153334,0.003,119880.0,119870.0,1.29645776]
[1753225158351,0.003,119880.0,119870.0,1.37120387]
[1753225159650,0.003,119880.0,119870.0,1.29645776]
[1753225161355,0.0002,119890.0,119870.0,1.12968536]
[1753225161561,1.6669399,119900.0,119890.0,0.2796045]
[1753225161760,1.6667399,119900.0,119890.0,0.71602986]
[1753225161957,1.6667399,119900.0,119890.0,0.50921914]
[1753225162560,1.6667399,119900.0,119890.0,0.50921768]
[1753225162761,1.6667399,119900.0,119890.0,0.53973551]
[1753225163057,1.6797399,119900.0,119890.0,0.53973551]
[1753225163565,1.6837399,119900.0,119890.0,0.53973551]
[1753225163755,1.6817399,119900.0,119890.0,0.53973551]
[1753225164258,1.6817306,119900.0,119890.0,0.53973551]
[1753225164764,1.6777306,119900.0,119890.0,0.53973551]
[1753225164957,1.6807306,119900.0,119890.0,0.54073551]
[1753225165759,1.6807306,119900.0,119890.0,0.60800998]
[1753225168268,1.6807306,119900.0,119890.0,0.40119926]
[1753225168459,1.6807306,119900.0,119890.0,0.60800998]
[1753225169462,1.88754132,119900.0,119890.0,0.60800998]
[1753225169766,1.95206132,119900.0,119890.0,0.60800998]
[1753225170864,1.95206132,119900.0,119890.0,0.66775166]
[1753225171463,2.15887204,119900.0,119890.0,0.13621228]
[1753225171662,2.15887204,119900.0,119890.0,0.12159681]
[1753225172073,2.15887204,119900.0,119890.0,0.18136091]
[1753225172373,2.15887204,119900.0,119890.0,0.11408644]
[1753225172573,2.15887204,119900.0,119890.0,0.10431305]
[1753225173071,2.15887204,119900.0,119890.0,0.04454895]
[1753225173267,2.15887204,119900.0,119890.0,0.05432311]
[1753225174268,0.70484204,119900.0,119890.0,0.05432311]
[1753225174565,0.70484204,119900.0,119890.0,0.04454895]
[1753225174769,0.70484204,119900.0,119890.0,0.05432311]
[1753225176672,0.70484204,119900.0,119890.0,0.04432311]
[1753225178266,0.70484204,119900.0,119890.0,0.03454895]
[1753225178474,0.70484204,119900.0,119890.0,0.04432295]
[1753225178971,0.70484204,119900.0,119890.0,0.03454895]
[1753225180573,0.70484204,119900.0,119890.0,0.03433163]
[1753225181375,0.70484204,119900.0,119890.0,0.07914833]
[1753225182876,0.70484204,119900.0,119890.0,0.10222833]
[1753225183175,1.27844204,119900.0,119890.0,0.13633833]
[1753225183771,1.27844204,119900.0,119890.0,0.10222833]
[1753225184074,1.27844204,119900.0,119890.0,0.07913973]
[1753225185078,1.27844204,119900.0,119890.0,0.0596219]
[1753225185274,1.27844204,119900.0,119890.0,0.0468167]
[1753225185476,1.27844204,119900.0,119890.0,0.05962171]
[1753225186377,1.27844204,119900.0,119890.0,0.0468167]
[1753225186677,1.27844204,119900.0,119890.0,0.05962103]
[1753225189766,0.70484204,119900.0,119890.0,0.0468167]
[1753225189966,1.27844204,119900.0,119890.0,0.05961975]
[1753225190380,1.27844204,119900.0,119890.0,0.0468167]
[1753225190572,1.27844204,119900.0,119890.0,0.05961941]
[1753225190967,1.27844204,119900.0,119890.0,0.0468167]
[1753225196078,1.27844204,119900.0,119890.0,0.05962267]
[1753225196279,1.27844204,119900.0,119890.0,0.05962434]
[1753225198982,1.27844204,119900.0,119890.0,0.05962897]
[1753225199182,1.27844204,119900.0,119890.0,0.06940321]
[1753225199580,0.2912206,119900.0,119890.0,0.05963247]
[1753225199781,1.27836204,119900.0,119890.0,0.18007654]
[1753225200181,1.27836204,119900.0,119890.0,0.34683523]
[1753225200487,0.8002206,119900.0,119890.0,0.50881506]
[1753225200687,0.8001806,119900.0,119890.0,0.70585255]
[1753225200985,0.7542106,119900.0,119890.0,0.7753901]
[1753225201283,0.7542106,119900.0,119890.0,0.50881474]
[1753225201984,0.7542106,119900.0,119890.0,0.58351067]
[1753225202287,0.1807306,119900.0,119890.0,0.58351067]
[1753225202478,0.7542106,119900.0,119890.0,0.58351067]
[1753225203280,0.58748,119900.0,119890.0,0.58292548]
[1753225203485,0.014,119900.0,119890.0,0.7897362]
[1753225203786,0.58744,119900.0,119890.0,0.7897362]
[1753225203987,0.7541706,119900.0,119890.0,0.58292548]
[1753225204182,0.7973106,119900.0,119890.0,0.58296519]
[1753225204376,0.7973106,119900.0,119890.0,0.50826926]
[1753225204575,0.7973106,119900.0,119890.0,0.58296519]
[1753225204874,0.7973106,119900.0,119890.0,0.50826926]
[1753225205288,1.00412132,119900.0,119890.0,0.50826926]
[1753225206184,0.7973106,119900.0,119890.0,0.50826926]
[1753225206482,0.7972706,119900.0,119890.0,0.50826926]
[1753225206786,0.2238706,119900.0,119890.0,0.50826926]
[1753225206986,0.7972706,119900.0,119890.0,0.48564003]
[1753225207281,0.7972706,119900.0,119890.0,0.57688973]
[1753225209487,0.8309606,119900.0,119890.0,0.57688973]
[1753225209984,0.7972706,119900.0,119890.0,0.57688973]
[1753225210185,0.7972706,119900.0,119890.0,0.57688954]
[1753225213592,0.7972706,119900.0,119890.0,0.63652888]
[1753225213894,0.7972706,119900.0,119890.0,0.57688954]
[1753225214198,0.2238706,119900.0,119890.0,0.57688954]
[1753225215499,0.7971506,119900.0,119890.0,0.57688954]
[1753225215799,0.8539306,119900.0,119890.0,0.6365228]
[1753225216198,0.8539306,119900.0,119890.0,0.6139011]
[1753225216498,0.8539306,119900.0,119890.0,0.63655207]
[1753225218706,0.8539306,119900.0,119890.0,0.57691881]
[1753225219403,0.8539306,119900.0,119890.0,0.57691847]
[1753225225218,0.8539306,119900.0,119890.0,0.56714628]
[1753225225517,0.8609906,119900.0,119890.0,0.57692477]
[1753225227119,1.06757065,119900.0,119890.0,0.50806629]
[1753225228819,1.06051065,119900.0,119890.0,0.50806629]
[1753225229019,1.06051065,119900.0,119890.0,0.58276222]
[1753225231516,0.8539306,119900.0,119890.0,0.58276222]
[1753225231722,1.06051065,119900.0,119890.0,0.58276222]
[1753225232918,0.8539306,119900.0,119890.0,0.58276222]
[1753225233818,0.8539306,119900.0,119890.0,0.50806629]
[1753225234017,0.8539306,119900.0,119890.0,0.58276222]
[1753225234215,0.2806506,119900.0,119890.0,0.58276222]
[1753225234418,0.7969106,119900.0,119890.0,0.58278279]
[1753225234620,0.7969106,119900.0,119890.0,0.58278283]
[1753225235421,0.7969106,119900.0,119890.0,0.78936288]
[1753225240124,0.7958906,119900.0,119890.0,0.78936288]
[1753225240324,0.7958906,119900.0,119890.0,0.78937267]
[1753225240525,0.7958906,119900.0,119890.0,0.58279262]
[1753225240922,0.8510406,119900.0,119890.0,0.58279262]
[1753225243418,0.8510406,119900.0,119890.0,0.56987742]
[1753225243623,1.06445065,119900.0,119890.0,0.41601866]
[1753225243817,1.2710307,119900.0,119890.0,0.09876861]
[1753225244222,1.2710307,119900.0,119890.0,0.02407663]
[1753225244418,1.2710307,119900.0,119890.0,0.09877256]
[1753225245128,1.2710307,119900.0,119890.0,0.02407663]
[1753225248022,1.2710307,119900.0,119890.0,0.01724663]
[1753225249329,1.2710307,119900.0,119890.0,0.07707015]
[1753225250225,0.8578706,119900.0,119890.0,0.07707015]
[1753225250529,1.2710307,119900.0,119890.0,0.07707015]
[1753225250825,0.1667584,119880.0,119870.0,0.10891593]
[1753225251030,1.1913685,119880.0,119870.0,0.09281172]
[1753225251527,1.1913685,119880.0,119870.0,0.01811579]
[1753225251728,0.1830724,119870.0,119860.0,0.14351593]
[1753225251922,0.41192245,119870.0,119860.0,0.14351593]
[1753225253230,0.48096695,119870.0,119860.0,0.14351593]
[1753225253432,0.48096695,119870.0,119860.0,0.21169935]
[1753225253631,0.48382695,119870.0,119860.0,0.21169935]
[1753225254429,0.48382695,119870.0,119860.0,0.37848565]
[1753225254625,0.48582695,119870.0,119860.0,0.42299565]
[1753225254935,0.2099524,119870.0,119860.0,0.44102272]
[1753225255133,0.2091024,119870.0,119860.0,0.44102272]
[1753225255430,0.2091024,119870.0,119860.0,0.71664727]
[1753225255822,0.7929824,119870.0,119860.0,0.71764727]
[1753225257632,0.7819824,119870.0,119860.0,0.71664727]
[1753225257831,0.7829824,119870.0,119860.0,0.71864727]
[1753225258130,0.7829824,119870.0,119860.0,0.44302272]
[1753225258721,0.7829824,119870.0,119860.0,0.36832679]
[1753225259033,0.7839824,119870.0,119860.0,0.36632679]
[1753225260533,0.7839824,119870.0,119860.0,0.64195134]
[1753225260833,0.7839824,119870.0,119860.0,0.70167976]
[1753225261028,0.7839824,119870.0,119860.0,0.64195134]
[1753225261428,0.7839824,119870.0,119860.0,0.70167496]
[1753225261624,0.7839824,119870.0,119860.0,0.42605041]
[1753225261831,0.7839824,119870.0,119860.0,0.70167496]
[1753225262224,0.7819824,119870.0,119860.0,0.70267496]
[1753225262735,0.7819824,119870.0,119860.0,0.71541804]
[1753225264338,0.7819424,119870.0,119860.0,0.43979349]
[1753225264537,0.7819424,119870.0,119860.0,0.71541804]
[1753225266739,0.7819424,119870.0,119860.0,0.71554085]
[1753225270039,0.7819424,119870.0,119860.0,0.71554359]
[1753225272342,0.7819424,119870.0,119860.0,0.65581997]
[1753225273543,0.7819024,119870.0,119860.0,0.38019542]
[1753225273745,0.7819024,119870.0,119860.0,0.65581997]
[1753225274142,0.61513,119870.0,119860.0,0.65581997]
[1753225274342,0.5911,119870.0,119860.0,0.65581997]
[1753225274543,0.5748,119870.0,119860.0,0.65581997]
[1753225276248,0.5748,119870.0,119860.0,0.7305159]
[1753225276446,0.002,119870.0,119860.0,1.22861997]
[1753225278251,0.002,119870.0,119860.0,1.3033159]
[1753225278549,0.1687724,119870.0,119860.0,1.3033159]
[1753225278750,0.1687724,119870.0,119860.0,1.29044727]
[1753225279050,0.1847724,119870.0,119860.0,1.30313687]
[1753225279350,0.1852724,119870.0,119860.0,1.29044727]
[1753225279549,0.1852724,119870.0,119860.0,1.30313964]
[1753225281552,0.2075424,119870.0,119860.0,1.30313964]
[1753225282258,0.2075424,119870.0,119860.0,0.73033964]
[1753225282956,0.0185,119870.0,119860.0,0.73033964]
[1753225283459,0.018,119870.0,119860.0,0.73033964]
[1753225283659,0.1847724,119870.0,119860.0,0.73033964]
[1753225286954,0.1851624,119870.0,119860.0,0.73033964]
[1753225287152,0.1852724,119870.0,119860.0,0.73033964]
[1753225287454,0.1852724,119870.0,119860.0,0.45471509]
[1753225287653,0.2075424,119870.0,119860.0,0.73033964]
[1753225288158,0.1852724,119870.0,119860.0,0.73034422]
[1753225288359,0.1852724,119870.0,119860.0,0.73034506]
[1753225288558,0.2075424,119870.0,119860.0,0.73034506]
[1753225289661,0.2075424,119870.0,119860.0,0.73034621]
[1753225291165,0.1852724,119870.0,119860.0,0.45472174]
[1753225291367,0.1852724,119870.0,119860.0,0.73034629]
[1753225293269,0.1852724,119870.0,119860.0,0.86808052]
[1753225293667,0.39195179,119870.0,119860.0,0.86808052]
[1753225293967,0.1852724,119870.0,119860.0,0.86808117]
[1753225294167,0.39195179,119870.0,119860.0,0.86808117]
[1753225297071,0.39195179,119870.0,119860.0,0.86808119]
[1753225298767,0.002,119870.0,119860.0,0.86808119]
[1753225298969,0.002,119870.0,119860.0,0.79338526]
[1753225299172,0.002,119870.0,119860.0,1.00006465]
[1753225299867,0.1669592,119880.0,119870.0,0.2100924]
[1753225300175,0.8382714,119890.0,119880.0,0.2784784]
[1753225300372,0.2501314,119890.0,119880.0,0.70453687]
[1753225300573,0.2501314,119890.0,119880.0,0.77935917]
[1753225300774,0.2084431,119890.0,119880.0,0.36600039]
[1753225301075,0.2084431,119890.0,119880.0,0.77935917]
[1753225301274,0.2084431,119890.0,119880.0,0.56662418]
[1753225301576,0.2204431,119890.0,119880.0,0.64244648]
[1753225301782,0.2204431,119890.0,119880.0,0.56762418]
[1753225302077,0.2244431,119890.0,119880.0,0.56762418]
[1753225302373,0.2124431,119890.0,119880.0,0.56662418]
[1753225302573,0.2134431,119890.0,119880.0,0.56862418]
[1753225303577,0.1677445,119890.0,119880.0,0.56862418]
[1753225303879,0.002,119890.0,119880.0,0.64744648]
[1753225304073,0.002,119890.0,119880.0,0.64734376]
[1753225305972,0.002,119890.0,119880.0,0.92278985]
[1753225306177,0.0002,119900.0,119880.0,0.92278985]
[1753225306178,0.0002,119900.0,119890.0,0.2538645]
[1753225306478,0.2919719,119910.0,119900.0,0.2784506]
[1753225306675,0.2919719,119910.0,119900.0,0.6263101]
[1753225306676,0.2917719,119910.0,119900.0,0.6263101]
[1753225307073,0.2917719,119910.0,119900.0,0.62630536]
[1753225307980,0.3071519,119910.0,119900.0,0.62630536]
[1753225308174,0.3071519,119910.0,119900.0,0.62730536]
[1753225308379,0.3111519,119910.0,119900.0,0.62730536]
[1753225310975,0.3221519,119910.0,119900.0,0.62930536]
[1753225311176,0.2234085,119910.0,119900.0,0.56958755]
[1753225313180,0.2234085,119910.0,119900.0,0.62930536]
[1753225315182,0.1817167,119910.0,119900.0,0.62930536]
[1753225315786,0.1817167,119910.0,119900.0,0.62928021]
[1753225318282,0.015,119910.0,119900.0,0.62928021]
[1753225318883,0.015,119910.0,119900.0,0.62927505]
[1753225319482,0.1817167,119910.0,119900.0,0.62927505]
[1753225320286,0.1817167,119910.0,119900.0,0.56955724]
[1753225321187,0.1817167,119910.0,119900.0,0.56955436]
[1753225322085,0.1817167,119910.0,119900.0,0.62913556]
[1753225322284,0.1817167,119910.0,119900.0,0.56955436]
[1753225323090,0.1817167,119910.0,119900.0,0.62913505]
[1753225323290,0.1817167,119910.0,119900.0,0.56955436]
[1753225323991,0.1817167,119910.0,119900.0,0.56955494]
[1753225324489,0.015,119910.0,119900.0,0.56955494]
[1753225324686,0.015,119910.0,119900.0,0.55689669]
[1753225324884,0.015,119910.0,119900.0,0.56955604]
[1753225325492,0.1817167,119910.0,119900.0,0.56955604]
[1753225325991,0.015,119910.0,119900.0,0.56955604]
[1753225328291,0.015,119910.0,119900.0,0.64427562]
[1753225329488,0.1817167,119910.0,119900.0,0.64427562]
[1753225332392,0.015,119910.0,119900.0,0.64427562]
[1753225333188,0.0002,119920.0,119910.0,0.2092967]
[1753225333388,0.2502503,119930.0,119920.0,0.2186828]
[1753225333591,0.2500503,119930.0,119920.0,0.62277556]
[1753225333798,0.2661703,119930.0,119920.0,0.56312041]
[1753225334895,0.2661703,119930.0,119920.0,0.62276933]
[1753225335200,0.2661703,119930.0,119920.0,0.63405898]
[1753225335597,0.2661703,119930.0,119920.0,0.63505898]
[1753225335794,0.2741703,119930.0,119920.0,0.63505898]
[1753225336601,0.2781703,119930.0,119920.0,0.63605898]
[1753225336895,0.2781703,119930.0,119920.0,0.70267287]
[1753225341305,0.2781703,119930.0,119920.0,0.64302395]
[1753225342104,0.2781703,119930.0,119920.0,0.70266401]
[1753225342306,0.2781703,119930.0,119920.0,0.64302602]
[1753225343006,0.2781703,119930.0,119920.0,0.70266999]
[1753225343305,0.2781703,119930.0,119920.0,0.64302697]
[1753225344409,0.2781703,119930.0,119920.0,0.71759764]
[1753225344608,0.2620503,119930.0,119920.0,0.71759764]
[1753225346605,0.2620503,119930.0,119920.0,0.64302697]
[1753225348806,0.2203753,119930.0,119920.0,0.64302697]
[1753225349511,0.1787004,119930.0,119920.0,0.64302697]
[1753225349912,0.012,119930.0,119920.0,0.64302697]
[1753225350210,0.01632,119940.0,119930.0,0.2749689]
[1753225350411,0.182795,119940.0,119930.0,0.56310953]
[1753225350608,0.182795,119940.0,119930.0,0.6376802]
[1753225351011,0.182795,119940.0,119930.0,0.56310953]
[1753225351210,0.182795,119940.0,119930.0,0.62498566]
[1753225351509,0.182795,119940.0,119930.0,0.56310728]
[1753225351706,0.187795,119940.0,119930.0,0.63767795]
[1753225351912,0.005,119940.0,119930.0,1.20955795]
[1753225352208,0.171675,119940.0,119930.0,1.20955795]
[1753225353111,0.171675,119940.0,119930.0,1.13498728]
[1753225358309,0.171675,119940.0,119930.0,1.12229499]
[1753225359112,0.171675,119940.0,119930.0,1.25965706]
[1753225359314,0.171675,119940.0,119930.0,1.33422773]
[1753225360009,0.005,119940.0,119930.0,1.33422773]
[1753225360214,0.005,119940.0,119930.0,1.45963204]
[1753225360514,0.005,119940.0,119930.0,1.48982257]
[1753225361014,0.005,119940.0,119930.0,1.38506137]
[1753225361213,0.003,119940.0,119930.0,1.38506137]
[1753225361509,0.0002,119950.0,119940.0,0.273935]
[1753225361712,0.265717,119960.0,119950.0,0.2739211]
[1753225361914,0.265517,119960.0,119950.0,0.48032518]
[1753225362417,0.265517,119960.0,119950.0,0.5399164]
[1753225362712,0.1666601,119960.0,119950.0,0.74632048]
[1753225362918,0.1696601,119960.0,119950.0,0.48032518]
[1753225363117,0.1696601,119960.0,119950.0,0.62355464]
[1753225363417,0.1851901,119960.0,119950.0,0.62355464]
[1753225363612,0.1870601,119960.0,119950.0,0.62355464]
[1753225364316,0.1890601,119960.0,119950.0,0.54905349]
[1753225364711,0.1890601,119960.0,119950.0,0.2739211]
[1753225365019,0.1890601,119960.0,119950.0,0.54905349]
[1753225366112,0.1890601,119960.0,119950.0,0.60860226]
[1753225366320,0.1890601,119960.0,119950.0,0.54905349]
[1753225366720,0.1871901,119960.0,119950.0,0.60860114]
[1753225368518,0.1890601,119960.0,119950.0,0.60860114]
[1753225372818,0.1871901,119960.0,119950.0,0.60860114]
[1753225374719,0.1716601,119960.0,119950.0,0.60860114]
[1753225376729,0.1716601,119960.0,119950.0,1.18016114]
[1753225379134,0.1716601,119960.0,119950.0,1.12061349]
[1753225380934,0.1716601,119960.0,119950.0,0.8454811]
[1753225381135,0.48646249,119960.0,119950.0,0.10726]
[1753225381335,0.48646249,119960.0,119950.0,0.16686288]
[1753225382036,0.48646249,119960.0,119950.0,0.17954276]
[1753225382430,0.48646249,119960.0,119950.0,0.34620386]
[1753225383136,0.2113301,119960.0,119950.0,0.34620386]
[1753225384239,0.2113301,119960.0,119950.0,0.33352398]
[1753225384536,0.2113301,119960.0,119950.0,0.34627754]
[1753225387137,0.2113301,119960.0,119950.0,0.62140993]
[1753225387338,0.1716601,119960.0,119950.0,0.56180705]
[1753225388837,0.1716472,119960.0,119950.0,0.56180705]
[1753225389037,0.1716472,119960.0,119950.0,0.6363082]